[Event "Estonian Chess Championship 2022"]
[Site "Tallinn, Paul Keres Chess House, Estonia"]
[Date "2022.12.10"]
[Round "1.5"]
[White "Sirosh, Ilja"]
[Black "Kulaots, Kaido"]
[Result "0-1"]
[TimeControl "90 minutes for first 40 moves and 15 min. for the rest of the game with 30 sec. increment from move 1"]
[WhiteTitle "IM"]
[BlackTitle "GM"]
[WhiteFideId "4500458"]
[BlackFideId "4500261"]
[WhiteElo "2386"]
[BlackElo "2513"]

1. e4 {

[%clk 01:30:57]

} {

[%emt 00:00:01]

} c5 {

[%clk 01:30:40]

} {

[%emt 00:00:20]

} 2. Nf3 {

[%clk 01:31:21]

} {

[%emt 00:00:06]

} Nc6 {

[%clk 01:29:39]

} {

[%emt 00:01:31]

} 3. d4 {

[%clk 01:31:43]

} {

[%emt 00:00:08]

} cxd4 {

[%clk 01:30:06]

} {

[%emt 00:00:04]

} 4. Nxd4 {

[%clk 01:32:05]

} {

[%emt 00:00:08]

} Nf6 {

[%clk 01:30:24]

} {

[%emt 00:00:12]

} 5. Nc3 {

[%clk 01:32:29]

} {

[%emt 00:00:06]

} d6 {

[%clk 01:30:45]

} {

[%emt 00:00:09]

} 6. Bg5 {

[%clk 01:30:12]

} {

[%emt 00:02:47]

} e6 {

[%clk 01:30:19]

} {

[%emt 00:00:56]

} 7. Qd3 {

[%clk 01:30:30]

} {

[%emt 00:00:12]

} Bd7 {

[%clk 01:26:34]

} {

[%emt 00:04:15]

} 8. O-O-O {

[%clk 01:20:52]

} {

[%emt 00:10:08]

} a6 {

[%clk 01:25:51]

} {

[%emt 00:01:14]

} 9. f4 {

[%clk 01:14:47]

} {

[%emt 00:06:34]

} h6 {

[%clk 01:12:41]

} {

[%emt 00:13:40]

} 10. Bh4 {

[%clk 01:14:05]

} {

[%emt 00:01:12]

} g5 {

[%clk 01:08:40]

} {

[%emt 00:04:30]

} 11. fxg5 {

[%clk 01:06:58]

} {

[%emt 00:07:38]

} Ng4 {

[%clk 01:09:04]

} {

[%emt 00:00:06]

} 12. Nxc6 {

[%clk 00:47:02]

} {

[%emt 00:20:26]

} Bxc6 {

[%clk 01:04:31]

} {

[%emt 00:05:04]

} 13. Be2 {

[%clk 00:42:27]

} {

[%emt 00:05:05]

} hxg5 {

[%clk 01:01:58]

} {

[%emt 00:03:03]

} 14. Bg3 {

[%clk 00:29:55]

} {

[%emt 00:13:02]

} Ne5 {

[%clk 01:02:04]

} {

[%emt 00:00:24]

} 15. Qd4 {

[%clk 00:28:51]

} {

[%emt 00:01:35]

} Qc7 {

[%clk 00:54:21]

} {

[%emt 00:08:13]

} 16. h4 {

[%clk 00:27:06]

} {

[%emt 00:02:15]

} gxh4 {

[%clk 00:52:31]

} {

[%emt 00:02:20]

} 17. Bxh4 {

[%clk 00:25:47]

} {

[%emt 00:01:48]

} Be7 {

[%clk 00:51:51]

} {

[%emt 00:01:09]

} 18. Bxe7 {

[%clk 00:23:34]

} {

[%emt 00:02:44]

} Kxe7 {

[%clk 00:51:41]

} {

[%emt 00:00:40]

} 19. g4 {

[%clk 00:20:07]

} {

[%emt 00:03:57]

} Rxh1 {

[%clk 00:50:14]

} {

[%emt 00:01:57]

} 20. Rxh1 {

[%clk 00:20:35]

} {

[%emt 00:00:02]

} Rg8 {

[%clk 00:50:22]

} {

[%emt 00:00:21]

} 21. Qf2 {

[%clk 00:18:03]

} {

[%emt 00:03:03]

} Qa5 {

[%clk 00:38:51]

} {

[%emt 00:12:01]

} 22. Qh4+ {

[%clk 00:17:30]

} {

[%emt 00:01:03]

} Kd7 {

[%clk 00:38:50]

} {

[%emt 00:00:30]

} 23. Qf2 {

[%clk 00:14:07]

} {

[%emt 00:03:53]

} Qc5 {

[%clk 00:37:23]

} {

[%emt 00:01:57]

} 24. Qf4 {

[%clk 00:04:43]

} {

[%emt 00:09:54]

} b5 {

[%clk 00:35:42]

} {

[%emt 00:02:10]

} 25. a3 {

[%clk 00:04:46]

} {

[%emt 00:00:28]

} a5 {

[%clk 00:33:26]

} {

[%emt 00:02:46]

} 26. Rh7 {

[%clk 00:04:39]

} {

[%emt 00:00:37]

} Ke7 {

[%clk 00:30:39]

} {

[%emt 00:03:16]

} 27. Nd1 {

[%clk 00:03:38]

} {

[%emt 00:01:31]

} b4 {

[%clk 00:29:10]

} {

[%emt 00:01:59]

} 28. g5 {

[%clk 00:02:37]

} {

[%emt 00:01:31]

} Ba4 {

[%clk 00:12:59]

} {

[%emt 00:16:40]

} 29. Ne3 {

[%clk 00:01:05]

} {

[%emt 00:02:03]

} Bxc2 {

[%clk 00:12:55]

} {

[%emt 00:00:34]

} 30. Nxc2 {

[%clk 00:01:11]

} {

[%emt 00:00:23]

} b3 {

[%clk 00:12:47]

} {

[%emt 00:00:38]

} 31. Qf6+ {

[%clk 00:01:10]

} {

[%emt 00:00:32]

} Kd7 {

[%clk 00:10:06]

} {

[%emt 00:03:10]

} 32. Bd1 {

[%clk 00:00:34]

} {

[%emt 00:01:06]

} bxc2 {

[%clk 00:09:24]

} {

[%emt 00:01:12]

} 33. Bxc2 {

[%clk 00:01:02]

} {

[%emt 00:00:02]

} Qg1+ {

[%clk 00:08:40]

} {

[%emt 00:01:14]

} 34. Kd2 {

[%clk 00:01:31]

} {

[%emt 00:00:01]

} Qd4+ {

[%clk 00:06:39]

} {

[%emt 00:02:31]

} 35. Kc1 {

[%clk 00:00:57]

} {

[%emt 00:01:05]

} Qg1+ {

[%clk 00:07:03]

} {

[%emt 00:00:06]

} 36. Kd2 {

[%clk 00:01:26]

} {

[%emt 00:00:01]

} Qd4+ {

[%clk 00:07:11]

} {

[%emt 00:00:21]

} 37. Kc1 {

[%clk 00:01:51]

} {

[%emt 00:00:05]

} Rb8 {

[%clk 00:06:11]

} {

[%emt 00:01:30]

} 38. Rxf7+ {

[%clk 00:01:22]

} {

[%emt 00:00:59]

} Kc6 {

[%clk 00:06:28]

} {

[%emt 00:00:13]

} 39. Qf2 {

[%clk 00:00:33]

} {

[%emt 00:01:19]

} Qxb2+ {

[%clk 00:05:50]

} {

[%emt 00:01:08]

} 40. Kd1 {

[%clk 00:16:02]

} Qa1+ {

[%clk 00:19:15]

} {

[%emt 00:02:06]

} 41. Kd2 {

[%clk 00:12:26]

} {

[%emt 00:04:07]

} Nc4+ {

[%clk 00:14:02]

} {

[%emt 00:05:43]

} 42. Ke2 {

[%clk 00:12:51]

} {

[%emt 00:00:04]

} Rb2 {

[%clk 00:13:08]

} {

[%emt 00:01:24]

} 43. Kf3 {

[%clk 00:10:42]

} {

[%emt 00:02:40]

} Qxa3+ {

[%clk 00:13:09]

} {

[%emt 00:00:29]

} 44. Kf4 {

[%clk 00:10:44]

} {

[%emt 00:00:28]

} e5+ {

[%clk 00:12:01]

} {

[%emt 00:01:38]

} 45. Kf5 {

[%clk 00:11:12]

} {

[%emt 00:00:02]

} Ne3+ {

[%clk 00:12:22]

} {

[%emt 00:00:08]

} 46. Kg6 {

[%clk 00:11:34]

} {

[%emt 00:00:09]

} Rxc2 {

[%clk 00:12:25]

} {

[%emt 00:00:27]

} 47. Qf6 {

[%clk 00:11:30]

} {

[%emt 00:00:33]

} Qd3 {

[%clk 00:11:43]

} {

[%emt 00:01:12]

} 48. Qe6 {

[%clk 00:11:43]

} {

[%emt 00:00:18]

} Qxe4 {

[%clk 00:11:47]

} {

[%emt 00:00:25]

} 49. Kg7 {

[%clk 00:12:08]

} {

[%emt 00:00:05]

} Nc4 {

[%clk 00:06:05]

} {

[%emt 00:06:13]

} 50. g6 {

[%clk 00:09:52]

} {

[%emt 00:02:47]

} Rg2 {

[%clk 00:04:52]

} {

[%emt 00:01:42]

} 51. Rf6 {

[%clk 00:07:52]

} {

[%emt 00:02:30]

} Kc5 {

[%clk 00:04:44]

} {

[%emt 00:00:38]

} 52. Kf8 {

[%clk 00:04:26]

} {

[%emt 00:03:56]

} a4 {

[%clk 00:04:49]

} {

[%emt 00:00:25]

} 53. Qe8 {

[%clk 00:02:11]

} {

[%emt 00:02:46]

} a3 {

[%clk 00:04:39]

} {

[%emt 00:00:40]

} 54. g7 {

[%clk 00:02:30]

} {

[%emt 00:00:10]

} a2 {

[%clk 00:04:13]

} {

[%emt 00:00:56]

} 55. Qa4 {

[%clk 00:02:49]

} {

[%emt 00:00:11]

} Qb1 {

[%clk 00:02:04]

} {

[%emt 00:02:39]

} 56. Qa7+ {

[%clk 00:02:27]

} {

[%emt 00:00:52]

} Qb6 {

[%clk 00:01:36]

} {

[%emt 00:00:58]

} 57. Qa8 {

[%clk 00:02:38]

} {

[%emt 00:00:19]

} Qc6 {

[%clk 00:01:45]

} {

[%emt 00:00:21]

} 58. Qa7+ {

[%clk 00:02:49]

} {

[%emt 00:00:19]

} Kb4 {

[%clk 00:01:59]

} {

[%emt 00:00:15]

} 59. Rf7 {

[%clk 00:02:00]

} {

[%emt 00:01:20]

} Qc8+ {

[%clk 00:00:59]

} {

[%emt 00:01:30]

} 60. Ke7 {

[%clk 00:02:26]

} {

[%emt 00:00:04]

} Na5 {

[%clk 00:00:53]

} {

[%emt 00:00:36]

} 0-1

[Event "Estonian Chess Championship 2022"]
[Site "Tallinn, Paul Keres Chess House, Estonia"]
[Date "2022.12.11"]
[Round "2.1"]
[White "Kanep, Meelis"]
[Black "Kulaots, Kaido"]
[Result "1/2-1/2"]
[TimeControl "90 minutes for first 40 moves and 15 min. for the rest of the game with 30 sec. increment from move 1"]
[WhiteTitle "GM"]
[BlackTitle "GM"]
[WhiteFideId "4501047"]
[BlackFideId "4500261"]
[WhiteElo "2412"]
[BlackElo "2513"]

1. Nf3 {

[%clk 01:29:30]

} {

[%emt 00:01:29]

} Nf6 {

[%clk 01:30:35]

} {

[%emt 00:00:25]

} 2. g3 {

[%clk 01:29:26]

} {

[%emt 00:00:34]

} g6 {

[%clk 01:30:51]

} {

[%emt 00:00:13]

} 3. Bg2 {

[%clk 01:29:45]

} {

[%emt 00:00:12]

} Bg7 {

[%clk 01:31:14]

} {

[%emt 00:00:07]

} 4. O-O {

[%clk 01:29:56]

} {

[%emt 00:00:19]

} O-O {

[%clk 01:31:38]

} {

[%emt 00:00:06]

} 5. d4 {

[%clk 01:27:23]

} {

[%emt 00:03:02]

} d5 {

[%clk 01:30:31]

} {

[%emt 00:01:36]

} 6. c4 {

[%clk 01:27:07]

} {

[%emt 00:00:48]

} c6 {

[%clk 01:29:45]

} {

[%emt 00:01:16]

} 7. cxd5 {

[%clk 01:26:42]

} {

[%emt 00:00:56]

} cxd5 {

[%clk 01:30:08]

} {

[%emt 00:00:06]

} 8. Ne5 {

[%clk 01:26:13]

} {

[%emt 00:00:59]

} Ng4 {

[%clk 01:26:46]

} {

[%emt 00:03:52]

} 9. Nf3 {

[%clk 01:23:38]

} {

[%emt 00:03:06]

} Nf6 {

[%clk 01:26:57]

} {

[%emt 00:00:18]

} 10. Ne5 {

[%clk 01:23:35]

} {

[%emt 00:00:34]

} Ng4 {

[%clk 01:27:22]

} {

[%emt 00:00:05]

} 11. Nf3 {

[%clk 01:23:59]

} {

[%emt 00:00:06]

} Nf6 {

[%clk 01:27:48]

} {

[%emt 00:00:04]

} 12. Ne5 {

[%clk 01:24:22]

} {

[%emt 00:00:08]

} 1/2-1/2

[Event "Estonian Chess Championship 2022"]
[Site "Tallinn, Paul Keres Chess House, Estonia"]
[Date "2022.12.11"]
[Round "2.2"]
[White "Soot, Margus"]
[Black "Sirosh, Ilja"]
[Result "1/2-1/2"]
[TimeControl "90 minutes for first 40 moves and 15 min. for the rest of the game with 30 sec. increment from move 1"]
[BlackTitle "IM"]
[WhiteFideId "4501160"]
[BlackFideId "4500458"]
[WhiteElo "2121"]
[BlackElo "2386"]

1. e4 {

[%clk 01:30:54]

} {

[%emt 00:00:04]

} c5 {

[%clk 01:30:49]

} {

[%emt 00:00:12]

} 2. Nc3 {

[%clk 01:30:42]

} {

[%emt 00:00:42]

} Nc6 {

[%clk 01:31:10]

} {

[%emt 00:00:08]

} 3. Be2 {

[%clk 01:30:49]

} {

[%emt 00:00:23]

} Nf6 {

[%clk 01:25:35]

} {

[%emt 00:06:05]

} 4. Nf3 {

[%clk 01:30:05]

} {

[%emt 00:01:14]

} e5 {

[%clk 01:21:34]

} {

[%emt 00:04:31]

} 5. O-O {

[%clk 01:24:26]

} {

[%emt 00:06:09]

} Be7 {

[%clk 01:21:41]

} {

[%emt 00:00:22]

} 6. Re1 {

[%clk 01:20:48]

} {

[%emt 00:04:09]

} O-O {

[%clk 01:21:44]

} {

[%emt 00:00:28]

} 7. h3 {

[%clk 01:19:17]

} {

[%emt 00:02:01]

} d6 {

[%clk 01:19:15]

} {

[%emt 00:02:59]

} 8. b3 {

[%clk 01:18:36]

} {

[%emt 00:01:11]

} h6 {

[%clk 01:17:23]

} {

[%emt 00:02:21]

} 9. Bb2 {

[%clk 01:17:55]

} {

[%emt 00:01:12]

} Be6 {

[%clk 01:17:18]

} {

[%emt 00:00:35]

} 10. Bf1 {

[%clk 01:18:24]

} {

[%emt 00:00:01]

} Qd7 {

[%clk 01:13:36]

} {

[%emt 00:04:12]

} 11. a4 {

[%clk 01:16:09]

} {

[%emt 00:02:45]

} Rae8 {

[%clk 01:10:13]

} {

[%emt 00:03:52]

} 12. Nh2 {

[%clk 01:05:23]

} {

[%emt 00:11:15]

} Bd8 {

[%clk 01:07:07]

} {

[%emt 00:03:37]

} 13. Bc4 {

[%clk 01:03:02]

} {

[%emt 00:02:51]

} Nh7 {

[%clk 01:03:23]

} {

[%emt 00:04:14]

} 14. Nd5 {

[%clk 00:59:11]

} {

[%emt 00:04:21]

} f5 {

[%clk 00:47:21]

} {

[%emt 00:16:31]

} 15. f4 {

[%clk 00:53:52]

} {

[%emt 00:05:49]

} fxe4 {

[%clk 00:42:24]

} {

[%emt 00:05:28]

} 16. fxe5 {

[%clk 00:49:53]

} {

[%emt 00:04:29]

} dxe5 {

[%clk 00:37:04]

} {

[%emt 00:05:50]

} 17. Ne3 {

[%clk 00:49:42]

} {

[%emt 00:00:41]

} Bh4 {

[%clk 00:33:49]

} {

[%emt 00:03:45]

} 18. Rf1 {

[%clk 00:49:56]

} {

[%emt 00:00:16]

} Rxf1+ {

[%clk 00:33:39]

} {

[%emt 00:00:40]

} 19. Nhxf1 {

[%clk 00:50:12]

} {

[%emt 00:00:14]

} Qf7 {

[%clk 00:17:39]

} {

[%emt 00:16:30]

} 20. Bxe6 {

[%clk 00:46:48]

} {

[%emt 00:03:55]

} Rxe6 {

[%clk 00:17:54]

} {

[%emt 00:00:15]

} 21. Qg4 {

[%clk 00:46:55]

} {

[%emt 00:00:22]

} Bf2+ {

[%clk 00:16:19]

} {

[%emt 00:02:04]

} 22. Kh1 {

[%clk 00:47:11]

} {

[%emt 00:00:15]

} Nf6 {

[%clk 00:14:52]

} {

[%emt 00:01:57]

} 23. Qe2 {

[%clk 00:25:06]

} {

[%emt 00:22:35]

} Bxe3 {

[%clk 00:13:10]

} {

[%emt 00:02:13]

} 24. dxe3 {

[%clk 00:24:50]

} {

[%emt 00:00:45]

} Rd6 {

[%clk 00:13:12]

} {

[%emt 00:00:28]

} 25. Rd1 {

[%clk 00:21:31]

} {

[%emt 00:03:49]

} Rxd1 {

[%clk 00:09:47]

} {

[%emt 00:03:55]

} 26. Qxd1 {

[%clk 00:21:48]

} {

[%emt 00:00:14]

} Qd5 {

[%clk 00:10:02]

} {

[%emt 00:00:15]

} 27. Qe2 {

[%clk 00:22:05]

} {

[%emt 00:00:14]

} c4 {

[%clk 00:05:44]

} {

[%emt 00:04:48]

} 28. Qxc4 {

[%clk 00:15:26]

} {

[%emt 00:07:08]

} Qxc4 {

[%clk 00:06:07]

} {

[%emt 00:00:07]

} 29. bxc4 {

[%clk 00:15:55]

} {

[%emt 00:00:02]

} Kf7 {

[%clk 00:06:19]

} {

[%emt 00:00:18]

} 30. Nd2 {

[%clk 00:16:09]

} {

[%emt 00:00:15]

} Ke6 {

[%clk 00:06:40]

} {

[%emt 00:00:09]

} 31. Ba3 {

[%clk 00:12:29]

} {

[%emt 00:04:10]

} g6 {

[%clk 00:04:03]

} {

[%emt 00:03:07]

} 32. Kg1 {

[%clk 00:11:58]

} {

[%emt 00:01:01]

} b6 {

[%clk 00:02:34]

} {

[%emt 00:01:59]

} 33. Kf2 {

[%clk 00:12:23]

} {

[%emt 00:00:05]

} Na5 {

[%clk 00:02:52]

} {

[%emt 00:00:12]

} 34. c5 {

[%clk 00:08:34]

} {

[%emt 00:04:19]

} Kd5 {

[%clk 00:02:19]

} {

[%emt 00:01:03]

} 35. cxb6 {

[%clk 00:09:03]

} {

[%emt 00:00:02]

} axb6 {

[%clk 00:02:43]

} {

[%emt 00:00:06]

} 36. Bb4 {

[%clk 00:07:43]

} {

[%emt 00:01:49]

} Nc4 {

[%clk 00:01:40]

} {

[%emt 00:01:34]

} 37. Nb3 {

[%clk 00:06:23]

} {

[%emt 00:01:50]

} Nd7 {

[%clk 00:01:49]

} {

[%emt 00:00:21]

} 38. a5 {

[%clk 00:06:38]

} {

[%emt 00:00:16]

} bxa5 {

[%clk 00:02:14]

} {

[%emt 00:00:06]

} 39. Nxa5 {

[%clk 00:06:49]

} {

[%emt 00:00:19]

} Nxa5 {

[%clk 00:01:58]

} {

[%emt 00:00:45]

} 40. Bxa5 {

[%clk 00:22:17]

} {

[%emt 00:00:01]

} Nc5 {

[%clk 00:16:36]

} {

[%emt 00:00:51]

} 41. Bb4 {

[%clk 00:19:52]

} {

[%emt 00:02:57]

} Ne6 {

[%clk 00:16:56]

} {

[%emt 00:00:10]

} 42. Ke2 {

[%clk 00:20:02]

} {

[%emt 00:00:20]

} h5 {

[%clk 00:15:42]

} {

[%emt 00:01:44]

} 43. Kd2 {

[%clk 00:16:50]

} {

[%emt 00:03:43]

} Kc4 {

[%clk 00:16:06]

} {

[%emt 00:00:06]

} 44. Bd6 {

[%clk 00:15:12]

} {

[%emt 00:02:06]

} Kd5 {

[%clk 00:16:26]

} {

[%emt 00:00:11]

} 45. Ba3 {

[%clk 00:15:40]

} {

[%emt 00:00:02]

} Kc4 {

[%clk 00:16:48]

} {

[%emt 00:00:09]

} 46. Bb2 {

[%clk 00:15:38]

} {

[%emt 00:00:32]

} Kb4 {

[%clk 00:08:53]

} {

[%emt 00:08:25]

} 47. Bxe5 {

[%clk 00:15:50]

} {

[%emt 00:00:18]

} Kc4 {

[%clk 00:09:18]

} {

[%emt 00:00:05]

} 48. Bf6 {

[%clk 00:16:01]

} {

[%emt 00:00:18]

} Nc7 {

[%clk 00:09:28]

} {

[%emt 00:00:21]

} 49. Ke2 {

[%clk 00:15:57]

} {

[%emt 00:00:34]

} Ne6 {

[%clk 00:09:42]

} {

[%emt 00:00:16]

} 50. Kf2 {

[%clk 00:16:06]

} {

[%emt 00:00:20]

} Kd5 {

[%clk 00:09:52]

} {

[%emt 00:00:21]

} 51. Kg3 {

[%clk 00:16:24]

} {

[%emt 00:00:11]

} Kc4 {

[%clk 00:10:12]

} {

[%emt 00:00:11]

} 52. Kh4 {

[%clk 00:15:44]

} {

[%emt 00:01:10]

} Kd5 {

[%clk 00:10:28]

} {

[%emt 00:00:14]

} 53. g4 {

[%clk 00:15:18]

} {

[%emt 00:00:56]

} hxg4 {

[%clk 00:10:52]

} {

[%emt 00:00:06]

} 54. Kxg4 {

[%clk 00:15:47]

} {

[%emt 00:00:01]

} Kc4 {

[%clk 00:10:05]

} {

[%emt 00:01:17]

} 55. h4 {

[%clk 00:16:11]

} {

[%emt 00:00:06]

} Kd5 {

[%clk 00:10:30]

} {

[%emt 00:00:06]

} 56. Be7 {

[%clk 00:15:51]

} {

[%emt 00:00:49]

} Kc4 {

[%clk 00:09:12]

} {

[%emt 00:01:48]

} 57. Bf6 {

[%clk 00:16:19]

} {

[%emt 00:00:02]

} Kd5 {

[%clk 00:09:33]

} {

[%emt 00:00:10]

} 58. Bb2 {

[%clk 00:16:30]

} {

[%emt 00:00:19]

} Kc4 {

[%clk 00:09:56]

} {

[%emt 00:00:07]

} 59. Be5 {

[%clk 00:14:44]

} {

[%emt 00:02:15]

} Kd5 {

[%clk 00:09:54]

} {

[%emt 00:00:32]

} 60. Bg3 {

[%clk 00:13:47]

} {

[%emt 00:01:26]

} Kc4 {

[%clk 00:10:06]

} {

[%emt 00:00:19]

} 61. Be1 {

[%clk 00:14:12]

} {

[%emt 00:00:05]

} Kd5 {

[%clk 00:10:11]

} {

[%emt 00:00:24]

} 62. Bf2 {

[%clk 00:13:31]

} {

[%emt 00:01:12]

} Kc4 {

[%clk 00:10:34]

} {

[%emt 00:00:08]

} 63. Be1 {

[%clk 00:12:54]

} {

[%emt 00:01:07]

} Kd5 {

[%clk 00:11:02]

} {

[%emt 00:00:01]

} 64. Bb4 {

[%clk 00:12:12]

} {

[%emt 00:01:12]

} Kc4 {

[%clk 00:11:25]

} {

[%emt 00:00:08]

} 65. Ba5 {

[%clk 00:12:38]

} {

[%emt 00:00:04]

} Kb5 {

[%clk 00:11:18]

} {

[%emt 00:00:37]

} 66. Bc3 {

[%clk 00:12:39]

} {

[%emt 00:00:29]

} Kc4 {

[%clk 00:11:44]

} {

[%emt 00:00:04]

} 67. Ba1 {

[%clk 00:13:03]

} {

[%emt 00:00:06]

} Kd5 {

[%clk 00:12:05]

} {

[%emt 00:00:08]

} 68. Bh8 {

[%clk 00:09:12]

} {

[%emt 00:04:22]

} Kc4 {

[%clk 00:12:33]

} {

[%emt 00:00:02]

} 69. Bf6 {

[%clk 00:09:31]

} {

[%emt 00:00:10]

} Kd5 {

[%emt 00:01:19]

} 70. Be7 {

[%emt 00:01:12]

} Kc4 71. h5 gxh5 72. Kf5 {

[%emt 00:00:01]

} Kd5 {

[%emt 00:00:02]

} 73. c4+ Kxc4 74. Kxe6 {

[%emt 00:00:02]

} Kd3 75. Bg5 {

[%emt 00:00:08]

} h4 {

[%emt 00:00:03]

} 76. Kf5 {

[%emt 00:00:02]

} h3 {

[%emt 00:00:01]

} 77. Bf4 h2 1/2-1/2